bitfinex/quotes_SOLUSD_20240614
["timestamp","ask_amount","ask_price","bid_price","bid_amount"]
[1718355416002,6.26,148.48,148.41,1.34674905]
[1718355416306,6.26,148.48,148.42,6.09]
[1718355417125,112.2026,148.47,148.41,1.34674905]
[1718355417325,112.2026,148.47,148.41,7.43674905]
[1718355417660,6.09,148.46,148.41,7.43674905]
[1718355418101,6.09,148.46,148.41,1.34674905]
[1718355418425,112.2026,148.47,148.42,6.09]
[1718355419741,106.1126,148.47,148.42,6.09]
[1718355420049,6.1126,148.47,148.42,6.09]
[1718355420343,6.1126,148.47,148.41,1.34674905]
[1718355420548,6.1126,148.47,148.42,6.09]
[1718355420851,6.1126,148.47,148.41,1.34674905]
[1718355421127,6.1126,148.47,148.42,6.09]
[1718355421931,6.1126,148.47,148.43,6.09]
[1718355423337,6.1126,148.47,148.42,6.09]
[1718355424639,6.1126,148.47,148.41,1.34674905]
[1718355424850,6.1126,148.47,148.42,6.09]
[1718355427565,112.2026,148.47,148.41,1.34674905]
[1718355427860,6.09,148.46,148.41,7.43674905]
[1718355428022,6.1126,148.47,148.42,6.09]
[1718355428225,6.1126,148.47,148.45,6.09]
[1718355430033,6.1126,148.47,148.44,6.09]
[1718355431647,6.1126,148.47,148.41,1.34674905]
[1718355431855,6.1126,148.47,148.45,6.09]
[1718355432061,6.1126,148.47,148.41,46.34674905]
[1718355432364,6.1126,148.47,148.44,6.09]
[1718355433545,6.1126,148.47,148.41,46.34674905]
[1718355433868,6.1126,148.47,148.42,20.0]
[1718355436950,6.1126,148.47,148.41,1.34674905]
[1718355437154,12.2026,148.47,148.41,7.43674905]
[1718355438166,6.1126,148.47,148.41,7.43674905]
[1718355438476,6.1126,148.47,148.42,6.09]
[1718355438771,106.1126,148.47,148.41,1.34674905]
[1718355438975,112.2026,148.47,148.41,7.43674905]
[1718355439353,112.2026,148.47,148.41,1.34674905]
[1718355439561,112.2026,148.47,148.41,7.43674905]
[1718355439757,106.1126,148.47,148.41,7.43674905]
[1718355439986,6.1126,148.47,148.41,1.34674905]
[1718355440189,6.2636,148.52,148.46,6.09]
[1718355440496,6.2636,148.52,148.5,6.09]
[1718355440658,15.2833,148.53,148.51,6.09]
[1718355441085,15.2833,148.53,148.47,24.36]
[1718355441266,15.2833,148.53,148.5,6.09]
[1718355444186,15.2833,148.53,148.44,0.17]
[1718355444394,0.17,148.52,148.43,65.17]
[1718355444574,21.3733,148.53,148.48,6.09]
[1718355446388,15.2833,148.53,148.48,6.09]
[1718355448581,21.3733,148.53,148.48,6.09]
[1718355450002,100.0,148.52,148.43,45.17]
[1718355450186,6.0521,148.51,148.46,6.09]
[1718355451510,106.09,148.5,148.41,1.34674905]
[1718355451695,106.26,148.5,148.41,1.34674905]
[1718355451896,106.26,148.5,148.44,6.09]
[1718355452315,6.09,148.49,148.44,6.09]
[1718355455620,16.2724,148.48,148.41,1.34674905]
[1718355456126,16.1024,148.48,148.44,6.09]
[1718355458937,16.1024,148.48,148.41,66.34674905]
[1718355459125,16.1024,148.48,148.44,6.09]
[1718355460631,16.1024,148.48,148.41,21.34674905]
[1718355460933,22.1924,148.48,148.42,6.09]
[1718355461332,22.1924,148.48,148.43,6.09]
[1718355461704,6.2149,148.47,148.41,1.34674905]
[1718355461909,0.17,148.46,148.42,6.09]
[1718355463937,0.17,148.46,148.41,1.34674905]
[1718355464236,0.17,148.46,148.42,6.09]
[1718355465049,0.17,148.46,148.41,1.34674905]
[1718355465245,0.17,148.46,148.42,6.09]
[1718355465538,0.17,148.46,148.41,1.34674905]
[1718355465723,0.17,148.46,148.42,6.09]
[1718355466538,0.17,148.46,148.41,7.43674905]
[1718355467135,0.17,148.46,148.41,1.34674905]
[1718355467336,0.17,148.46,148.41,7.43674905]
[1718355468122,0.17,148.46,148.41,1.34674905]
[1718355468341,0.17,148.46,148.41,7.43674905]
[1718355469229,106.26,148.46,148.41,1.34674905]
[1718355469552,6.09,148.45,148.36,0.17]
[1718355469863,0.66666666,148.45,148.4,6.09]
[1718355470448,6.75666666,148.45,148.4,6.09]
[1718355470627,6.75666666,148.45,148.36,45.51]
[1718355470827,6.75666666,148.45,148.39,6.09]
[1718355471337,0.66666666,148.45,148.36,45.17]
[1718355471554,0.66666666,148.45,148.4,6.09]
[1718355472639,0.66666666,148.45,148.37,20.0]
[1718355472814,0.66666666,148.45,148.4,6.09]
[1718355473145,6.75666666,148.45,148.4,6.09]
[1718355473319,6.75666666,148.45,148.37,20.0]
[1718355473320,0.17,148.44,148.39,6.09]
[1718355474125,0.66666666,148.43,148.39,6.09]
[1718355474321,17.33126666,148.43,148.38,6.09]
[1718355475022,17.33126666,148.43,148.37,20.0]
[1718355475222,6.2307,148.42,148.38,6.09]
[1718355476418,6.2307,148.42,148.37,6.09]
[1718355476625,6.2307,148.42,148.33,13.20004364]
[1718355476949,6.2307,148.42,148.37,6.09]
[1718355477545,12.3207,148.42,148.37,6.09]
[1718355477848,12.3207,148.42,148.34,65.0]
[1718355478025,0.66666666,148.41,148.36,6.09]
[1718355478227,0.66666666,148.41,148.34,65.0]
[1718355478417,6.75666666,148.41,148.34,20.0]
[1718355478620,6.75666666,148.41,148.3,1.34774799]
[1718355478621,6.09,148.38,148.3,1.34774799]
[1718355478849,0.17,148.37,148.32,6.09]
[1718355479027,0.83666666,148.37,148.27,19.1599]
[1718355479228,0.83666666,148.37,148.32,6.09]
[1718355479435,0.83666666,148.37,148.28,2.4952]
[1718355479638,0.83666666,148.37,148.32,6.09]
[1718355480327,0.83666666,148.37,148.33,6.09]
[1718355480528,0.66666666,148.37,148.33,6.09]
[1718355480753,0.66666666,148.37,148.34,6.09]
[1718355482042,0.66666666,148.37,148.35,6.09]
[1718355482230,0.66666666,148.37,148.33,24.36]
[1718355482575,0.66666666,148.37,148.34,65.0]
[1718355484751,0.66666666,148.37,148.36,6.09]
[1718355484960,0.66666666,148.37,148.36,26.09]
[1718355487563,0.66666666,148.37,148.36,71.09]
[1718355495271,0.66666666,148.37,148.36,65.0]
[1718355495452,0.66666666,148.37,148.36,71.09]
[1718355497853,0.66666666,148.37,148.36,73.7539]
[1718355498091,0.66666666,148.37,148.36,73.9239]
[1718355498388,0.66666666,148.37,148.36,71.43]
[1718355501177,0.66666666,148.37,148.36,71.6]
[1718355504455,0.66666666,148.37,148.36,65.51]
[1718355504681,0.66666666,148.37,148.36,71.43]
[1718355508159,0.66666666,148.37,148.36,71.6]
[1718355510383,0.66666666,148.37,148.36,178.03482006]
[1718355510585,0.66666666,148.37,148.36,71.6]
[1718355511265,0.66666666,148.37,148.36,148.03482006]
[1718355511466,0.66666666,148.37,148.36,71.6]
[1718355511666,0.66666666,148.37,148.36,138.03482006]
[1718355511876,0.66666666,148.37,148.36,71.6]
[1718355512086,0.66666666,148.37,148.36,118.03482006]
[1718355512459,0.66666666,148.37,148.36,148.66040327]
[1718355512663,15.6516,148.44,148.37,2.6637]
[1718355512863,15.6516,148.44,148.43,6.09]
[1718355513092,15.6516,148.44,148.38,0.34]
[1718355513093,15.6516,148.44,148.42,6.09]
[1718355513693,15.6516,148.44,148.41,6.09]
[1718355514383,15.6516,148.44,148.41,6.1]
[1718355515292,15.6516,148.44,148.42,6.1]
[1718355515499,15.6516,148.44,148.43,6.1]
[1718355515991,6.3118,148.45,148.43,6.1]
[1718355516190,116.211,148.48,148.4,24.4]
[1718355516191,16.211,148.48,148.44,6.1]
[1718355517666,16.211,148.48,148.45,6.1]
[1718355519380,16.211,148.48,148.46,6.1]
[1718355520262,16.211,148.48,148.47,6.1]
[1718355521583,16.211,148.48,148.46,6.1]
[1718355522672,16.211,148.48,148.45,6.1]
[1718355525607,122.311,148.48,148.38,0.17]
[1718355525808,122.311,148.48,148.38,20.68]
[1718355525975,122.311,148.48,148.43,6.1]
[1718355526713,116.211,148.48,148.43,6.1]
[1718355527500,16.211,148.48,148.43,6.1]
[1718355527981,116.211,148.48,148.44,6.1]
[1718355529286,116.211,148.48,148.43,6.1]
[1718355531883,116.211,148.48,148.39,0.17]
[1718355532201,116.211,148.48,148.36,69.89140327]
[1718355532202,6.1,148.46,148.36,72.38530327]
[1718355532514,6.1,148.45,148.4,6.1]
[1718355532693,106.1,148.46,148.4,6.1]
[1718355533012,106.1,148.46,148.41,6.1]
[1718355533013,100.0,148.46,148.41,6.1]
[1718355534695,100.0,148.46,148.42,6.1]
[1718355534915,16.211,148.48,148.4,6.1]
[1718355535125,16.211,148.48,148.44,6.1]
[1718355537333,16.211,148.48,148.43,6.1]
[1718355538018,116.211,148.48,148.43,6.1]
[1718355540239,116.211,148.48,148.44,6.1]
[1718355542640,116.211,148.48,148.43,6.1]
[1718355544233,16.211,148.48,148.43,6.1]
[1718355544443,16.211,148.48,148.41,65.0]
[1718355546164,16.211,148.48,148.43,6.1]
[1718355546327,16.211,148.48,148.44,6.1]
[1718355548632,16.211,148.48,148.41,65.0]
[1718355548833,16.211,148.48,148.44,6.1]
[1718355550958,16.211,148.48,148.41,65.0]
[1718355551352,16.211,148.48,148.44,6.1]
[1718355553041,0.17,148.47,148.43,6.1]
[1718355556562,116.211,148.48,148.44,6.1]
[1718355557748,116.211,148.48,148.41,20.0]
[1718355562063,122.311,148.48,148.41,20.0]
[1718355562389,116.211,148.48,148.42,6.1]
[1718355562547,116.211,148.48,148.43,6.1]
[1718355563761,116.211,148.48,148.39,22.4934]
[1718355564073,116.211,148.48,148.43,6.1]
[1718355567387,0.17,148.47,148.39,20.0]
[1718355567594,0.68,148.47,148.38,2.4935]
[1718355567878,0.68,148.47,148.42,6.1]
[1718355568066,0.68,148.47,148.38,2.4935]
[1718355568067,6.78,148.47,148.41,6.1]
[1718355568579,0.68,148.47,148.42,6.1]
[1718355570763,6.78,148.47,148.42,6.1]
[1718355570959,6.78,148.47,148.41,6.1]
[1718355575989,100.0,148.45,148.36,74.808472]
[1718355576181,0.17,148.44,148.4,6.1]
[1718355576688,100.0,148.45,148.41,6.1]
[1718355583891,100.0,148.45,148.37,45.0]
[1718355584082,100.0,148.45,148.4,6.1]
[1718355585286,100.0,148.45,148.41,6.1]
[1718355588008,106.1,148.45,148.38,20.0]
[1718355588513,106.1,148.45,148.4,6.1]
[1718355588514,100.0,148.45,148.4,6.1]
[1718355589209,100.0,148.45,148.38,20.0]
[1718355589398,0.17,148.44,148.4,6.1]
[1718355590302,22.7605,148.43,148.38,20.0]
[1718355590494,22.7605,148.43,148.39,6.1]
[1718355592296,22.7605,148.43,148.38,20.0]
[1718355592494,22.7605,148.43,148.39,6.1]
[1718355597732,22.7605,148.43,148.38,20.0]
[1718355597937,22.7605,148.43,148.39,6.1]
[1718355600523,22.7605,148.43,148.4,6.1]
[1718355600839,0.17,148.44,148.41,6.1]
[1718355601018,0.17,148.45,148.41,6.1]
[1718355601431,100.34,148.45,148.36,20.0]
[1718355601619,100.51,148.45,148.4,6.1]
[1718355602414,106.61,148.45,148.39,6.1]
[1718355602736,100.51,148.45,148.4,6.1]
[1718355603161,100.51,148.45,148.41,6.1]
[1718355603445,0.51,148.45,148.41,6.1]
[1718355603943,0.34,148.45,148.41,6.1]
[1718355604235,0.17,148.45,148.41,6.1]
[1718355604537,6.4764,148.46,148.4,6.1]
[1718355604744,6.4764,148.46,148.44,6.1]
[1718355605180,6.4764,148.46,148.37,22.8736]
[1718355605346,6.4764,148.46,148.43,6.1]
[1718355606368,6.4764,148.46,148.42,6.1]
[1718355606675,0.34,148.45,148.37,7.75168321]
[1718355606878,0.34,148.45,148.35,5.34228583]
[1718355607039,6.27,148.43,148.33,32.15168321]
[1718355607244,0.17,148.42,148.37,6.1]
[1718355607642,0.17,148.42,148.33,7.75168321]
[1718355607841,6.3984,148.4,148.33,13.12326854]
[1718355608146,0.17,148.39,148.35,6.1]
[1718355608342,0.17,148.39,148.32,7.50248411]
[1718355608574,0.17,148.39,148.34,6.1]
[1718355609243,0.17,148.39,148.32,7.50248411]
[1718355609444,0.17,148.39,148.34,6.1]
[1718355609845,6.3984,148.4,148.33,26.1]
[1718355610062,21.18,148.44,148.34,60.25416732]
[1718355610245,21.18,148.44,148.4,6.1]
[1718355610761,21.18,148.44,148.39,6.1]
[1718355611151,15.0332,148.44,148.42,6.1]
[1718355612944,15.0332,148.44,148.43,6.1]
[1718355614363,6.251,148.47,148.43,6.1]
[1718355614562,6.251,148.47,148.44,6.1]
[1718355615081,6.251,148.47,148.4,24.4]
[1718355615372,6.251,148.47,148.36,2.4938]
[1718355615545,6.251,148.47,148.43,6.1]
[1718355615748,0.17,148.46,148.43,6.1]
[1718355616952,0.17,148.46,148.36,95.45548321]
[1718355617150,0.17,148.46,148.42,6.1]
[1718355618557,0.17,148.46,148.37,0.17]
[1718355618751,0.17,148.46,148.36,95.45548321]
[1718355618752,24.4,148.4,148.33,26.954933]
[1718355618957,6.1,148.38,148.33,26.954933]
[1718355619155,0.17,148.37,148.33,26.954933]
[1718355619456,0.17,148.37,148.32,6.1]
[1718355620378,0.17,148.39,148.32,6.1]
[1718355620697,43.9859498,148.51,148.38,6.1]
[1718355620698,106.744,148.49,148.38,6.1]
[1718355620993,106.744,148.49,148.43,6.1]
[1718355620994,6.744,148.49,148.43,6.1]
[1718355621289,6.744,148.49,148.47,6.1]
[1718355621465,6.744,148.49,148.41,0.17]
[1718355621466,6.744,148.49,148.46,6.1]
[1718355621669,6.744,148.5,148.45,6.1]
[1718355621863,12.844,148.5,148.44,6.1]
[1718355622571,106.1,148.49,148.4,24.4]
[1718355622765,106.1,148.49,148.43,6.1]
[1718355622974,100.0,148.49,148.39,51.2822]
[1718355623170,100.0,148.49,148.4,20.0]
[1718355623497,6.914,148.5,148.41,45.0]
[1718355623720,0.17,148.49,148.42,20.0]
[1718355623994,0.17,148.49,148.38,20.9735]
[1718355623995,100.51,148.49,148.38,38.71]
[1718355624167,100.51,148.49,148.38,18.31]
[1718355624168,100.0,148.47,148.38,18.31]
[1718355624366,100.0,148.45,148.35,6.1904]
[1718355624597,0.51,148.44,148.31,15.4152]
[1718355624897,100.17,148.43,148.31,53.9552]
[1718355625118,0.17,148.42,148.31,53.9552]
[1718355625995,0.17,148.42,148.32,65.34]
[1718355626306,0.17,148.42,148.32,45.34]
[1718355627510,0.17,148.42,148.33,20.0]
[1718355627716,0.17,148.42,148.34,45.0]
[1718355628988,6.7579,148.42,148.34,45.0]
[1718355632712,6.7579,148.42,148.33,20.0]
[1718355633016,6.7579,148.42,148.32,20.0]
[1718355633217,6.7579,148.42,148.33,45.0]
[1718355634426,100.17,148.41,148.33,45.0]
[1718355634599,0.17,148.4,148.32,20.0]
[1718355634917,0.17,148.4,148.29,20.17]
[1718355635152,0.17,148.4,148.3,45.0]
[1718355635153,0.34,148.4,148.3,45.0]
[1718355635448,0.34,148.4,148.29,45.17]
[1718355636519,100.0,148.39,148.3,20.0]
[1718355636720,100.0,148.39,148.31,45.0]
[1718355638436,0.17,148.38,148.28,20.57]
[1718355638631,0.34,148.38,148.29,65.0]
[1718355639028,100.34,148.37,148.27,1.34802068]
[1718355639357,0.17,148.36,148.27,1.34802068]
[1718355641018,0.17,148.36,148.27,21.34802068]
[1718355641218,0.17,148.36,148.28,45.0]
[1718355642141,22.4989,148.35,148.28,45.0]
[1718355642961,22.4989,148.35,148.27,21.34802068]
[1718355643256,122.4989,148.35,148.27,1.34802068]
[1718355643629,0.17,148.34,148.27,21.34802068]
[1718355646153,0.34,148.34,148.27,21.34802068]
[1718355646330,0.34,148.34,148.27,1.34802068]
[1718355646529,0.17,148.34,148.27,1.34802068]
[1718355647634,0.17,148.34,148.27,21.34802068]
[1718355649457,0.51,148.34,148.27,21.34802068]
[1718355651572,0.34,148.34,148.27,21.34802068]
[1718355651776,0.17,148.34,148.27,21.34802068]
[1718355653043,122.4989,148.35,148.27,21.34802068]
[1718355654864,6.11,148.34,148.29,6.11]
[1718355655757,22.4989,148.35,148.29,6.11]
[1718355655951,6.11,148.34,148.29,6.11]
[1718355656361,28.6089,148.35,148.29,6.11]
[1718355657068,28.6089,148.35,148.27,21.34802068]
[1718355657275,6.11,148.34,148.29,6.11]
[1718355658965,6.11,148.34,148.27,21.34802068]
[1718355659156,6.11,148.34,148.29,6.11]
[1718355659367,6.11,148.34,148.28,6.11]
[1718355659745,6.11,148.34,148.27,21.34802068]
[1718355659947,6.11,148.34,148.28,6.11]
[1718355660446,22.4989,148.35,148.28,6.11]
[1718355660751,6.28,148.34,148.28,6.11]
[1718355661452,6.28,148.34,148.29,6.11]
[1718355662579,106.28,148.34,148.27,21.34802068]
[1718355662765,106.28,148.34,148.28,6.11]
[1718355662959,6.11,148.31,148.24,0.8456921]
[1718355663178,6.11,148.31,148.25,6.11]
[1718355663384,6.11,148.31,148.24,0.8456921]
[1718355663549,6.11,148.31,148.25,6.11]
[1718355664069,6.11,148.31,148.24,0.8456921]
[1718355664270,6.11,148.31,148.25,6.11]
[1718355664583,6.28,148.3,148.25,6.11]
[1718355665988,6.28,148.3,148.24,0.8456921]
[1718355666291,6.28,148.3,148.25,6.11]
[1718355667287,6.28,148.3,148.24,6.9556921]
[1718355667456,6.28,148.3,148.24,0.8456921]
[1718355667654,21.9678,148.29,148.24,0.8456921]
[1718355667873,6.11,148.27,148.24,0.8456921]
[1718355668663,6.45,148.28,148.24,0.8456921]
[1718355674673,0.34,148.28,148.24,0.8456921]
[1718355674878,6.11,148.27,148.24,0.8456921]
[1718355675992,6.11,148.26,148.24,0.8456921]
[1718355676198,6.11,148.25,148.24,0.8456921]
[1718355678103,0.17,148.25,148.24,0.8456921]
[1718355678290,6.28,148.25,148.24,0.8456921]
[1718355678984,6.62,148.25,148.24,0.8456921]
[1718355679186,6.79,148.25,148.24,0.8456921]
[1718355680299,7.12333333,148.25,148.24,0.8456921]
[1718355681604,0.33333333,148.25,148.24,0.8456921]
[1718355681983,0.33333333,148.25,148.24,6.9556921]
[1718355682420,0.33333333,148.25,148.24,0.8456921]
[1718355685491,6.44333333,148.25,148.24,0.8456921]
[1718355685901,0.33333333,148.25,148.24,0.8456921]
[1718355687981,0.50333333,148.25,148.24,0.8456921]
[1718355688306,6.61333333,148.25,148.24,0.8456921]
[1718355690605,0.50333333,148.25,148.24,0.8456921]
[1718355690812,6.61333333,148.25,148.24,0.8456921]
[1718355691989,7.12333333,148.25,148.24,0.8456921]
[1718355692991,6.95333333,148.25,148.24,0.8456921]
[1718355693193,6.78333333,148.25,148.24,0.8456921]
[1718355694813,6.95333333,148.25,148.24,0.8456921]
[1718355695001,52.12333333,148.25,148.24,0.8456921]
[1718355696319,0.17,148.24,148.15,6.5158]
[1718355696498,6.11,148.22,148.17,6.11]
[1718355696811,0.17,148.21,148.16,6.11]
[1718355697192,0.17,148.21,148.15,6.5158]
[1718355697402,0.17,148.21,148.14,15.2451]
[1718355697619,0.17,148.21,148.16,6.11]
[1718355697920,6.28,148.21,148.14,15.2451]
[1718355698220,6.11,148.2,148.14,21.3551]
[1718355698408,6.44333333,148.2,148.14,21.3551]
[1718355698600,6.44333333,148.2,148.11,1.34947692]
[1718355698802,6.44333333,148.2,148.14,6.11]
[1718355699820,6.44333333,148.2,148.15,6.11]
[1718355703318,0.33333333,148.2,148.11,1.34947692]
[1718355703627,6.44333333,148.2,148.15,6.11]
[1718355705026,0.33333333,148.2,148.12,20.4]
[1718355705339,0.33333333,148.2,148.13,65.34]
[1718355705512,0.33333333,148.2,148.13,65.0]
[1718355705706,6.44333333,148.2,148.15,6.11]
[1718355706230,6.44333333,148.2,148.13,65.0]
[1718355706430,6.44333333,148.2,148.15,6.11]
[1718355706801,6.44333333,148.2,148.13,65.0]
[1718355707021,6.44333333,148.2,148.14,6.11]
[1718355707433,6.44333333,148.2,148.13,65.0]
[1718355707631,6.44333333,148.2,148.14,6.11]
[1718355707828,6.11,148.19,148.14,6.11]
[1718355708336,0.34,148.21,148.14,6.11]
[1718355708531,6.11,148.2,148.14,6.11]
[1718355710450,0.17,148.21,148.14,6.11]
[1718355710637,6.11,148.2,148.14,6.11]
[1718355710825,6.11,148.21,148.15,6.11]
[1718355711637,0.34,148.22,148.15,6.11]
[1718355711840,6.11,148.21,148.15,6.11]
[1718355712067,15.3393,148.23,148.16,0.17]
[1718355712352,16.2009,148.26,148.19,6.11]
[1718355712529,16.2009,148.26,148.2,6.11]
[1718355712867,6.11,148.25,148.2,6.11]
[1718355713531,6.11,148.23,148.16,16.6579]
[1718355713731,6.11,148.24,148.18,6.11]
[1718355714246,16.2009,148.26,148.19,6.11]
[1718355714446,6.11,148.25,148.19,6.11]
[1718355714627,6.11,148.24,148.16,16.6579]
[1718355714827,6.11,148.24,148.19,6.11]
[1718355715552,6.11,148.24,148.16,16.6579]
[1718355715746,6.11,148.24,148.17,65.0]
[1718355716051,6.11,148.23,148.18,6.11]
[1718355716262,6.11,148.23,148.17,20.0]
[1718355716428,116.2009,148.26,148.18,6.11]
[1718355716740,6.11,148.23,148.18,6.11]
[1718355716941,6.11,148.23,148.17,26.11]
[1718355717141,0.51,148.25,148.17,20.0]
[1718355717142,0.33333333,148.22,148.17,20.0]
[1718355717339,0.33333333,148.22,148.17,26.11]
[1718355717840,6.44333333,148.22,148.17,26.11]
[1718355718038,6.44333333,148.22,148.17,20.0]
[1718355719149,6.44333333,148.22,148.17,26.11]
[1718355719533,0.33333333,148.22,148.17,26.11]
[1718355720359,0.33333333,148.22,148.19,6.11]
[1718355721845,0.33333333,148.22,148.2,6.11]
[1718355723072,0.33333333,148.22,148.21,6.11]
[1718355723569,1e-08,148.22,148.21,51.28]
[1718355723775,15.9322,148.3,148.21,71.28]
[1718355723939,15.9322,148.3,148.25,6.11]
[1718355724667,15.9322,148.3,148.22,65.17]
[1718355724668,15.0218,148.34,148.29,6.11]
[1718355724840,15.0218,148.34,148.26,0.17]
[1718355724841,15.0218,148.34,148.3,6.11]
[1718355725048,6.6218,148.35,148.3,6.11]
[1718355725569,12.7318,148.35,148.3,6.11]
[1718355725774,12.7318,148.35,148.29,6.11]
[1718355726069,12.7318,148.35,148.3,6.11]
[1718355726654,6.11,148.36,148.31,6.11]
[1718355726958,15.0218,148.38,148.26,20.4]
[1718355727180,15.0218,148.38,148.28,0.17]
[1718355727665,100.0,148.37,148.27,65.0]
[1718355728039,0.34,148.36,148.27,65.0]
[1718355728237,0.17,148.35,148.27,65.0]
[1718355728442,15.0218,148.38,148.28,0.68]
[1718355728977,15.0218,148.38,148.28,0.51]
[1718355729183,15.0218,148.38,148.28,0.34]
[1718355730088,100.34,148.37,148.27,65.0]
[1718355730263,100.51,148.37,148.27,20.0]
[1718355730448,0.17,148.36,148.27,20.0]
[1718355730648,0.17,148.36,148.26,20.0]
[1718355730961,100.51,148.37,148.26,20.0]
[1718355731544,100.0,148.37,148.27,0.34]
[1718355731851,100.0,148.37,148.27,45.0]
[1718355732970,0.51,148.36,148.27,45.0]
[1718355733485,100.0,148.34,148.26,20.0]
[1718355733666,0.34,148.33,148.24,20.0]
[1718355733990,0.17,148.32,148.24,20.0]
[1718355734270,145.0,148.36,148.24,20.0]
[1718355734459,0.51,148.35,148.24,22.4959]
[1718355734662,0.51,148.35,148.25,2.6657]
[1718355734854,0.51,148.35,148.25,47.6657]
[1718355735056,0.51,148.35,148.26,20.0]
[1718355735356,100.0,148.29,148.2,5.39500784]
[1718355735677,118.34,148.32,148.19,20.23]
[1718355735857,0.51,148.31,148.19,20.23]
[1718355736848,0.51,148.31,148.19,0.17]
[1718355737553,0.51,148.31,148.19,45.68]
[1718355737869,0.51,148.31,148.21,0.17]
[1718355738074,0.51,148.31,148.21,45.17]
[1718355739372,100.0,148.3,148.21,45.17]
[1718355739571,0.34,148.31,148.21,45.17]
[1718355739767,121.9489,148.34,148.23,0.17]
[1718355739965,121.9489,148.34,148.23,45.17]
[1718355740871,21.9489,148.34,148.25,0.17]
[1718355741077,21.9489,148.34,148.25,45.17]
[1718355741279,121.9489,148.34,148.25,45.17]
[1718355742399,121.9489,148.34,148.25,45.0]
[1718355742572,0.51,148.33,148.25,45.0]
[1718355743186,0.17,148.29,148.19,15.7019]
[1718355743402,100.0,148.24,148.14,20.23]
[1718355743577,100.34,148.24,148.11,3.84747692]
[1718355743764,0.17,148.23,148.1,20.8382]
[1718355743965,100.34,148.24,148.1,20.8382]
[1718355744169,0.34,148.24,148.11,20.23]
[1718355744368,0.34,148.24,148.11,22.7281]
[1718355744562,0.34,148.24,148.12,22.7279]
[1718355744796,0.34,148.24,148.13,0.17]
[1718355745004,0.34,148.24,148.13,65.68]
[1718355745506,100.34,148.24,148.13,20.0]
[1718355745674,100.34,148.24,148.12,40.23]
[1718355746096,100.0,148.24,148.12,40.23]
[1718355746490,100.0,148.24,148.14,0.17]
[1718355746802,100.0,148.24,148.14,0.34]
[1718355747007,100.0,148.24,148.15,0.17]
[1718355751017,100.0,148.24,148.16,0.17]
[1718355752926,6.12,148.22,148.17,6.12]
[1718355753527,6.12,148.22,148.16,0.17]
[1718355753746,6.12,148.22,148.17,6.12]
[1718355754026,6.12,148.22,148.16,0.17]